Cogmind - Beta 13 @@@ ROGUE MODE // 2024.04.06 @ 15:30:11 Player: TheSecutor Result: Destroyed by X-57 Shotgunner with High-powered Shotgun Performance ------------- Evolutions (2) 1000 Regions Visited (4) 800 Robots Destroyed (14) 70 Value Destroyed (354) 354 Prototype IDs (0) 0 Alien Tech Used (0) 0 Bonus (0) 0 TOTAL SCORE: 2224 Bonus ------- None Cogmind --------- Core Integrity 0/550 Matter 270/300 Energy 100/100 System Corruption 0% Temperature Cool (0) Movement Core (50) Location -8/Materials Parts ------- > --- POWER (1) -------- (None) > --- PROPULSION (3) --- (None) > --- UTILITY (3) ------ Terrain Scan Processor > --- WEAPON (4) ------- High-powered Shotgun > --- INVENTORY (5) ---- Improved Ion Engine Carbon-fiber Leg Improved Heat Sink Medium Armor Plating Peak State ------------ > --- POWER ------------ Deuterium Engine > --- PROPULSION ------- Airjet Airjet Airjet > --- UTILITY ---------- Small Storage Unit Improved Terrain Scanner Terrain Scan Processor > --- WEAPON ----------- Beam Rifle Beam Cannon Particle Cannon Rocket Launcher > --- INVENTORY -------- Improved Ion Engine Light Nuclear Core Carbon-fiber Leg Sensor Array Medium Armor Plating Improved EM Shotgun High-powered Shotgun Shock Bomb Launcher [Rating: 27] Favorites ----------- Power Light Ion Engine Engine Light Ion Engine Propulsion Airjet Leg Aluminum Leg Wheel Compact Wheel Hover Unit Airjet Flight Unit Flight Unit Utility Small Storage Unit Device Structural Scanner Storage Small Storage Unit Processor Terrain Scan Processor Weapon Beam Cannon Energy Gun EM Pulse Gun Energy Cannon Beam Cannon Ballistic Gun High-powered Shotgun Launcher Rocket Launcher Piercing Weapon Makeshift Spear Build | -11 -10 -10 -9 -8 ------- Run | Yrd Mat Min Mat Mat Slots Evolved 4 | . . . 2 2 Power . | . . . . . Propulsion 1 | . . . 1 . Utility 1 | . . . 1 . Weapon 2 | . . . . 2 Parts Attached 33 | 7 2 7 7 10 Power 5 | 1 1 . 2 1 Engine 5 | 1 1 . 2 1 Core . | . . . . . Reactor . | . . . . . Propulsion 10 | 2 . 2 2 4 Treads . | . . . . . Leg 3 | . . 2 . 1 Wheel 2 | 2 . . . . Hover 4 | . . . 1 3 Flight 1 | . . . 1 . Utility 5 | 1 1 1 1 1 Device 2 | . . 1 . 1 Storage 1 | 1 . . . . Processor 2 | . 1 . 1 . Hackware . | . . . . . Protection . | . . . . . Artifact . | . . . . . Weapon 13 | 3 . 4 2 4 Energy Gun 4 | 3 . . . 1 Energy Cannon 5 | . . 3 1 1 Ballistic Gun 1 | . . . . 1 Ballistic Cannon . | . . . . . Launcher 2 | . . . 1 1 Special Weapon . | . . . . . Impact Weapon . | . . . . . Slashing Weapon . | . . . . . Piercing Weapon 1 | . . 1 . . Special Melee Weapon . | . . . . . Unidentified Prototypes . | . . . . . Parts Lost 19 | . . 7 1 11 Power 2 | . . 1 . 1 Propulsion 5 | . . 1 1 3 Utility 3 | . . 1 . 2 Weapon 9 | . . 4 . 5 Highest Loss Streak 11 | . . 5 1 11 To Critical Strikes . | . . . . . Average Slot Usage (%) 87 | . 94 78 84 94 Engine 8 | . 14 5 9 8 Leg 6 | . . 13 7 2 Wheel 4 | . 28 5 . . Hover 9 | . . . 6 19 Flight 2 | . . . 5 2 Device 7 | . . 8 11 7 Storage 11 | . 14 14 11 8 Processor 8 | . 9 5 11 9 Energy Gun 7 | . 28 3 . 8 Energy Cannon 14 | . . 14 17 17 Launcher 3 | . . . 2 8 Piercing Weapon 2 | . . 7 2 . Naked Turns . | . . . . . Heaviest Build 29 | 12 16 18 20 29 Greatest Support 32 | 32 32 32 10 24 Greatest Overweight (x) 3 | . . 1 2 3 Average Overweight (x) . | . . . 1 1 Largest Inventory Capacity 8 | 8 8 8 8 8 Average Capacity 7 | 6 8 8 8 7 Most Carried 8 | 5 8 8 8 8 Average Carried 6 | 3 6 5 6 6 Final Capacity 8 | 8 8 8 8 5 Final Carried 8 | 4 8 5 8 4 Class Distribution -------------------- 53% | Mutant 21% | Skirmisher 11% | Scavenger-Mutant 9% | Scavenger-Skirmisher Dominant Class ---------------- Mutant | -10/Materials Mutant | -10/Mines Mutant | -9/Materials Skirmisher | -8/Materials Resources | -11 -10 -10 -9 -8 ----------- Run | Yrd Mat Min Mat Mat Matter Collected 513 | 221 69 62 63 98 Remotely . | . . . . . Salvage Created 488 | . . 76 189 223 Parts 27 | . . 1 18 8 Haulers Intercepted 1 | . . . . 1 Recyclers Shooed . | . . . . . Parts Field Recycled . | . . . . . Retrieved Matter . | . . . . . Parts Self-Destructed . | . . . . . Prevented . | . . . . . Kills | -11 -10 -10 -9 -8 ------- Run | Yrd Mat Min Mat Mat Combat Hostiles Destroyed 13 | . . 3 7 3 Guns 2 | . . 1 . 1 Cannons 9 | . . 1 6 2 AOE 1 | . . . 1 . Classes Destroyed 8 | . . 2 4 2 Tunneler 1 | . . 1 . . Hauler 1 | . . . . 1 Watcher 2 | . . . 1 1 Swarmer 4 | . . . 4 . Grunt 4 | . . . 2 2 Sentry 1 | . . . 1 . Specialist 1 | . . . . 1 Assembled 3 | . . 3 . . Best Kill Streak 3 | . . 3 3 2 Combat Bots Only 3 | . . 3 3 2 Max Kills in Single Turn 1 | . . 1 1 1 Gunslinging . | . . . . . Exploded 1 | . . . 1 . Melee . | . . . . . Uniques/NPCs Destroyed . | . . . . . Combat | -11 -10 -10 -9 -8 -------- Run | Yrd Mat Min Mat Mat Hostile Shots Fired 151 | . . 31 40 80 Missed 45 | . . 5 15 25 Damage Taken 2216 | . 30 802 219 1165 Core 818 | . 18 211 35 554 Absorbed by Shields . | . . . . . Core Remaining (%) 66 | 100 . 8 91 . Volleys Fired 51 | . . 15 18 18 Largest 3 | . . 2 2 3 Hottest 184 | . . 120 128 184 Shots Fired 92 | . . 23 34 35 Gun 24 | . . 10 . 14 Cannon 65 | . . 13 33 19 Launcher 3 | . . . 1 2 Special . | . . . . . Kinetic 5 | . . . . 5 Thermal 74 | . . 13 33 28 Explosive 1 | . . . 1 . Electromagnetic 12 | . . 10 . 2 Robot Hit Streak 11 | . . 4 3 11 Robot Miss Streak 5 | . . 3 5 3 Penetration Max . | . . . . . Secondary Targets . | . . . . . Shots Hit Robots 51 | . . 12 12 27 Core Hits 26 | . . 7 9 10 Critical Kills 1 | . . 1 . . Critical Parts Destroyed . | . . . . . Critical Strikes 1 | . . 1 . . Meltdown 1 | . . 1 . . Melee Attacks 1 | . . 1 . . Impact . | . . . . . Slashing . | . . . . . Piercing 1 | . . 1 . . Sneak Attacks 1 | . . 1 . . Combat Hostiles . | . . . . . Follow-up Attacks . | . . . . . Damage Inflicted 1087 | . 1 259 307 520 Guns 222 | . . 65 . 157 Cannons 688 | . . 123 276 289 Explosions 98 | . . . 31 67 Melee 71 | . . 71 . . Ramming 8 | . 1 . . 7 Kinetic 70 | . . . . 70 Thermal 775 | . . 123 276 376 Explosive 31 | . . . 31 . Electromagnetic 132 | . . 65 . 67 Impact . | . . . . . Slashing . | . . . . . Piercing 71 | . . 71 . . Highest Corruption 9 | . 1 9 1 . Average Corruption 4 | . 1 5 1 . Corruption Purged . | . . . . . Corruption Blocked . | . . . . . Effects 9 | . . 9 . . Message Errors 2 | . . 2 . . Matter Fused 2 | . . 2 . . Heat Flow Errors 1 | . . 1 . . Energy Discharges 2 | . . 2 . . Data Loss (minor) 2 | . . 2 . . Overload Shots . | . . . . . Overflow Damage 1 | . . . . 1 Projectiles 1 | . . . . 1 Explosions . | . . . . . Melee . | . . . . . Knockbacks . | . . . . . Impact . | . . . . . Kinetic . | . . . . . Secondary . | . . . . . Self-Inflicted Damage 5 | . . . . 5 Shots 1 | . . . . 1 Rammed 2 | . 1 . . 1 Targets Rammed 2 | . 1 . . 1 Kicked . | . . . . . Crushed . | . . . . . Highest Temperature 582 | . . 345 485 582 Average Temperature 193 | . . 149 196 231 Received Heat Transfer 182 | . . 80 48 54 Effects 20 | . . 1 4 15 Shutdowns 2 | . . . . 2 Interference 5 | . . . . 5 Short Circuit 2 | . . 1 . 1 Damage (minor) 1 | . . . . 1 Damage (major) 8 | . . . 4 4 Damage (core) 2 | . . . . 2 Siege Activations . | . . . . . Robots Corrupted . | . . . . . Combat Hostiles . | . . . . . Parts Fried . | . . . . . Impact Corruptions . | . . . . . Robots Melted 1 | . . 1 . . Combat Hostiles 1 | . . 1 . . Parts Melted 3 | . . . 1 2 Heat Transferred 1554 | . . 259 518 777 Parts Sabotaged . | . . . . . Parts Stolen . | . . . . . Parts Stripped . | . . . . . Power Chain Reactions . | . . . . . Alert | -11 -10 -10 -9 -8 ------- Run | Yrd Mat Min Mat Mat Peak Influence 253 | . . 5 253 167 Initial 106 | . . . 1 106 Average 71 | . . 1 127 109 Maximum Alert Level 1 | . . . 1 . Low Security (%) 95 | 100 100 100 80 100 Level 1 4 | . . . 19 . Level 2 . | . . . . . Level 3 . | . . . . . Level 4 . | . . . . . Level 5 . | . . . . . High Security . | . . . . . Max Security . | . . . . . Squads Dispatched 7 | . . . 1 6 Investigation . | . . . . . Extermination . | . . . . . Reinforcement 6 | . . . 1 5 Assault . | . . . . . Garrison 1 | . . . . 1 Intercept . | . . . . . Searches Triggered . | . . . . . Construction Impeded . | . . . . . Haulers Reinforced . | . . . . . Active Scanning Responses . | . . . . . Cargo Convoy Interrupts . | . . . . . Stealth | -11 -10 -10 -9 -8 --------- Run | Yrd Mat Min Mat Mat Distress Signals 1 | . . . 1 . Communications Jammed . | . . . . . Distress Signals . | . . . . . Times Spotted 29 | . 1 6 12 10 Peak Tracking Total 4 | . . 4 4 4 Tactical Retreats 2 | . . . 1 1 Traps | -11 -10 -10 -9 -8 ------- Run | Yrd Mat Min Mat Mat Traps Triggered 2 | . 1 . 1 . Indirectly . | . . . . . Trap Hack Attempts . | . . . . . Triggered . | . . . . . Disarmed . | . . . . . Reprogrammed . | . . . . . Reused . | . . . . . Traps Extracted . | . . . . . Installed . | . . . . . Triggered . | . . . . . Machines | -11 -10 -10 -9 -8 ---------- Run | Yrd Mat Min Mat Mat Machines Disabled . | . . . . . Max in Single Turn . | . . . . . Machines Repaired . | . . . . . Machines Dismantled . | . . . . . Machines Sabotaged . | . . . . . Overloaded Fab Kills . | . . . . . Hacking | -11 -10 -10 -9 -8 --------- Run | Yrd Mat Min Mat Mat Machines Accessed 2 | . . . 1 1 Terminals 2 | . . . 1 1 Fabricators . | . . . . . Repair Stations . | . . . . . Recycling Units . | . . . . . Scanalyzers . | . . . . . Garrison Access . | . . . . . Total Hacks 3 | . . . 1 2 Successful 2 | . . . 1 1 Failed 1 | . . . . 1 Catastrophic . | . . . . . Database Lockouts . | . . . . . Manual . | . . . . . Terminals 3 | . . . 1 2 Fabricators . | . . . . . Repair Stations . | . . . . . Recycling Units . | . . . . . Scanalyzers . | . . . . . Garrison Access . | . . . . . Terminal Hacks 2 | . . . 1 1 Emergency Access Points 1 | . . . . 1 Alert Level 1 | . . . 1 . Fabricator Hacks . | . . . . . Repair Station Hacks . | . . . . . Recycling Unit Hacks . | . . . . . Scanalyzer . | . . . . . Garrison Access Hacks . | . . . . . Unauthorized Hacks . | . . . . . Terminals . | . . . . . Fabricators . | . . . . . Repair Stations . | . . . . . Recycling Units . | . . . . . Scanalyzers . | . . . . . Garrison Access . | . . . . . Data Cores Recovered . | . . . . . Used . | . . . . . Hacking Detections 1 | . . . 1 . Full Trace Events . | . . . . . Feedback Events . | . . . . . Feedback Blocked . | . . . . . Robot Schematics Acquired . | . . . . . Robots Built . | . . . . . Authchips . | . . . . . Time . | . . . . . Total Robot Build Rating . | . . . . . Part Schematics Acquired . | . . . . . Parts Built . | . . . . . Authchips . | . . . . . Time . | . . . . . Total Part Build Rating . | . . . . . Parts Repaired . | . . . . . Time . | . . . . . Parts Recycled . | . . . . . Recycled Matter . | . . . . . Retrieved Matter . | . . . . . Retrieved Components . | . . . . . Parts Scanalyzed . | . . . . . Part Schematics Acquired . | . . . . . Parts Damaged . | . . . . . Bothacking | -11 -10 -10 -9 -8 ------------ Run | Yrd Mat Min Mat Mat Used RIF Installer . | . . . . . Robots Hacked . | . . . . . Non-combat . | . . . . . Combat . | . . . . . Robot Hacks Applied . | . . . . . Relay Couplers Released . | . . . . . Fabnet Peak Effective % . | . . . . . Robots Rewired . | . . . . . Allies Hacked . | . . . . . Hacks Repelled . | . . . . . Allies | -11 -10 -10 -9 -8 -------- Run | Yrd Mat Min Mat Mat Total Allies . | . . . . . Largest Group . | . . . . . Highest-Rated Group . | . . . . . Highest-Rated Ally . | . . . . . Total Orders . | . . . . . Ally Attacks . | . . . . . Total Damage . | . . . . . Kills . | . . . . . Allies Corrupted . | . . . . . Allies Melted . | . . . . . Intel | -11 -10 -10 -9 -8 ------- Run | Yrd Mat Min Mat Mat Robot Analysis Total . | . . . . . Derelict Logs Recovered 1 | . . 1 . . Drone Launches . | . . . . . Drone Recoveries . | . . . . . Exploration | -11 -10 -10 -9 -8 ------------- Run | Yrd Mat Min Mat Mat Turns Passed 1309 | 69 142 298 331 469 Spaces Moved 759 | 55 127 165 141 271 Core 6 | 6 . . . . Treads . | . . . . . Legs 246 | . . 136 65 45 Wheels 205 | 49 127 29 . . Hover 302 | . . . 76 226 Flight . | . . . . . Fastest Speed 50 | 50 100 100 180 112 Average Speed 141 | 94 100 149 186 143 Slowest Speed 260 | 100 100 190 190 260 Overloaded Moves . | . . . . . Propulsion Burnouts . | . . . . . Robots Hopped . | . . . . . Cave-ins Triggered 1 | . . 1 . . Exploration Rate (%) 22 | 4 24 44 20 20 Regions Visited 4 Branch Regions 1 Pre-discovered Areas . | . . . . . Known Exits Taken . | . . . . . Unknown Exits Taken 4 | 1 1 1 1 . Scrap Searched . | . . . . . Spaces Dug . | . . . . . Terrain Destroyed 4 | . . . 4 . Melee . | . . . . . Projectile . | . . . . . AOE 4 | . . . 4 . Terrain Rammed . | . . . . . Walls Destroyed . | . . . . . Machines Disabled . | . . . . . Actions | -11 -10 -10 -9 -8 --------- Run | Yrd Mat Min Mat Mat Total 902 | 71 143 193 175 320 Wait 5 | . . . . 5 Move 755 | 54 126 164 140 271 Hop . | . . . . . Pick Up 40 | 10 9 4 8 9 Fast Attach 2 | . 1 . 1 . Attach 19 | 6 . 5 3 5 Detach . | . . . . . Swap 12 | 1 1 2 3 5 Drop 15 | . 5 2 2 6 Fire 51 | . . 15 18 18 Melee 1 | . . 1 . . Ram 2 | . 1 . . 1 Kick . | . . . . . Crush . | . . . . . Escape Stasis . | . . . . . Rewire . | . . . . . Trap . | . . . . . Miscellaneous . | . . . . . Route ------- -11/Scrapyard -10/Materials -10/Mines -9/Materials -8/Materials History --------- Turn | Location | Event 23 | -11/Scrapyard | Discovered new exit (range 15) 70 | -11/Scrapyard | Entered Materials 188 | -10/Materials | Discovered new exit (range 15) 212 | -10/Materials | Entered Mines 213 | -10/Mines | Assembled infested the area 300 | -10/Mines | Build established: Mutant 324 | -10/Mines | Core integrity fell below 50% 326 | -10/Mines | Crushed by falling debris 327 | -10/Mines | Core integrity fell below 20% 347 | -10/Mines | A weapon hastily lodged in a ceiling crevice suddenly fell to the ground 361 | -10/Mines | Lost 5 parts (1p1n1u2w) 361 | -10/Mines | Learned Materials emergency access door positions 498 | -10/Mines | Discovered new exit (range 7) 510 | -10/Mines | Entered Materials 510 | -9/Materials | Evolved 2 slots: Propulsion x1, Utility x1 789 | -9/Materials | Discovered new exit (range 16) 841 | -9/Materials | Entered another Materials area 841 | -8/Materials | Evolved 2 slots: Weapon x2 1289 | -8/Materials | Garrison activated, responded to threat 1290 | -8/Materials | Core integrity fell below 50% 1298 | -8/Materials | Core integrity fell below 20% 1310 | -8/Materials | Destroyed by X-57 Shotgunner with High-powered Shotgun Last Messages --------------- 01291_ Airjet destroyed. 01291_ Knocked back. 01291_ ALERT: Hostiles spotted, dispatching reinforcements to Terminal M003. 01292_ Beam Cannon destroyed. 01293_ Shock Bomb Launcher destroyed. 01293_ Knocked back. 01295_ Destroyed Transmission Jammer. 01297_ H-61 Shepherd calls for reinforcements. 01297_ ALERT: Hostile activity reported, dispatching reinforcements to area. 01297_ Deuterium Engine destroyed. 01297_ Critical hit (Blast). 01297_ Knocked back. 01298_ Particle Cannon destroyed. 01300_ Penetrated by Slug. 01302_ U-05 Engineer knocked back. 01304_ U-05 Engineer builds a Door. 01304_ X-57 Shotgunner destroyed. 01304_ U-05 Engineer builds a Wall. Map ----- +----------------------------------------------------+ | | | ????????????????????????????????????? | | ????????????????????????????????????? | | ????????????????????????????????????? | | ????????????????????????????????????? | | ????????????????????????????????????? | | ????????????????????????????????????? | | ????????????????????????????????????? | | ????????????????????????????????????? | | ????????????????????????????????????? | | ????????????????????????????????????? | | ????????????????????????????????????? | | ???????????????????????###??????????? | | ??????????????????????? ??????????? | | ??????????????????????? ??????????? | | ???????????????????????# ??????????? | | ???????????????????????# ??????????? | | ???????????????????????+ +?????????? | | ???????????????????????# #?????????? | | ???????????????????????# #?????????? | | ???????????????????????# #?????????? | | ???????????????????????# [#?????????? | | ???????????????????????#!%!?????????? | | ???????????????????????#!*#?????????? | | ?????????#########????##%!##????????? | | ?????????# ######!!@ #????????? | | ?????????# +% #????????? | | ?????????# # x u[%#????????? | | ?????????# # ### u* #????????? | | ?????????# # #?##/######?????? | | ?????????# + #?# """ #???? | | ?????????# # #?#! """"" #???? | | ?????????# # #?#H """"" #???? | | ?????????# # #?# """"" #???? | | ?????????# # #?# """ #???? | | ?????????######### #?# % #???? | | ?????????????????# ### #???? | | ?????????????????# % + #???? | | ?????????????????# #############???? | | ????? ???????????# ##??????????????? | | ?? ?????????????## ##??????????????? | | ????????????????## ##??????????????? | | ????????????????## ##??????????????? | | ????????????????## ##??????????????? | | ? ????#??######### ##??????????????? | | ?? ##??????????????? | | ############ ##??????????????? | | ############????## ##??????????????? | | # ######### ##??????????????? | | # ######### ####????????????? | +----------------------------------------------------+ Best States ------------- Heat Dissipation 31 Energy Generation 14 Energy Capacity 275 Matter Stores 300 Matter Capacity 300 Sight Range 16 Terrain Scan Range 16 Terrain Scan Density 85 Evasion (%) 55 Item Schematics ----------------- None Robot Schematics ------------------ None Fabricated ------------ Nothing Alien Tech Used ----------------- None Achievements -------------- Close Call I Survived The Infestation Unlikely Earthworm Challenges ------------ None Game ------ Seed SpacefoldShadePlatform Manual? 0 Play Time 00:15:06 Cumulative 4.3 hours Start 2024.04.06 @ 15:16:26 End 2024.04.06 @ 15:30:11 Sessions 1 Manual Loads 0 Difficulty Rogue Special Mode None Game No. 13 Rogue 13 Adventurer 0 Explorer 0 Win Type - Total 0 Types 0/0/0/0/0/0/0/0/0 Lore% 1 Gallery% 13 Achievement% 10 Wizard Run 0 Options --------- Layout 1 ASCII 0 Keyboard 0 Movement Mouse Keybinds 0 Fullscreen 1 Font 24/Smallcaps Map View 50x35 Zoom Use 0% Tactical HUD 1 Map Filters NONE Filters NONE Steam 1 RUN: 958ec0c4-3e88-4741-9506-c5bcd9a227b7